fUSD/lending_fUSD_20251229
["ID","MTS","AMOUNT","RATE_DAILY","PERIOD"]
[400003208,1767010246891,-481.65,0.00032219,2]
[400003209,1767010246900,-481.65,0.00032219,2]
[400003210,1767010246909,-481.65,0.00032219,2]
[400003211,1767010246918,-481.65,0.00032219,2]
[400003212,1767010246927,-481.65,0.00032219,2]
[400003213,1767010246937,-481.65,0.00032219,2]
[400003214,1767010246947,-963.3,0.00032219,2]
[400003215,1767010246956,-554.37,0.00032412,2]
[400003216,1767010246965,-2633.15871089,0.00032511,2]
[400003217,1767010246974,-2279.61052244,0.00032605,2]
[400003218,1767010246984,-151.0,0.00032877,31]
[400003219,1767010246994,-184.712496,0.00032877,31]
[400003220,1767010247003,-500.0,0.00032877,2]
[400003221,1767010247012,-500.0,0.00032877,2]
[400003222,1767010247022,-500.0,0.00032877,2]
[400003223,1767010247031,-500.0,0.00032877,2]
[400003224,1767010247040,-500.0,0.00032877,2]
[400003225,1767010247050,-331.71267894,0.00032877,2]
[400003226,1767010247059,-3389.39,0.000329,2]
[400003227,1767010247068,-6111.47978276,0.00033,2]
[400003228,1767010247078,-1988.96156541,0.00033,2]
[400003229,1767010247087,-1907.27647102,0.00033,2]
[400003230,1767010247096,-152.85154455,0.00033,2]
[400003231,1767010247106,-375.45,0.00033,5]
[400003232,1767010247115,-422.59,0.00033165,2]
[400003233,1767010247125,-3389.39,0.000336,2]
[400003234,1767010247134,-1008.9,0.00033721,3]
[400003235,1767010247144,-1033.46409579,0.00033833,2]
[400003236,1767010247153,-409.06,0.000342,14]
[400003237,1767010247162,-150.0,0.0003428,2]
[400003238,1767010247171,-150.0,0.0003428,2]
[400003239,1767010247181,-246.50965399,0.000344,2]
[400003240,1767010247190,-4000.0,0.00035,5]
[400003241,1767010247200,-150.66288844,0.00035,120]
[400003242,1767010247210,-276.0,0.00035,3]
[400003243,1767010247220,-150.0,0.00035101,2]
[400003244,1767010247230,-150.0,0.00035101,2]
[400003245,1767010247241,-301.44,0.00035101,2]
[400003246,1767010247250,-150.0,0.00035101,2]
[400003247,1767010247260,-150.0,0.00035101,2]
[400003248,1767010247269,-150.0,0.00035101,2]
[400003249,1767010247280,-150.0,0.00035101,2]
[400003250,1767010247290,-150.0,0.00035101,2]
[400003251,1767010247300,-150.0,0.00035101,2]
[400003252,1767010247309,-150.0,0.00035101,2]
[400003253,1767010247320,-150.0,0.00035203,2]
[400003254,1767010247330,-150.0,0.00035203,2]
[400003255,1767010247339,-150.0,0.00035203,2]
[400003256,1767010247348,-150.0,0.00035203,2]
[400003257,1767010247358,-150.0,0.00035203,2]
[400003258,1767010247368,-150.0,0.00035203,2]
[400003259,1767010247378,-150.0,0.00035203,2]
[400003260,1767010247387,-150.0,0.00035203,2]
[400003261,1767010247397,-150.0,0.00035203,2]
[400003262,1767010247407,-150.0,0.00035203,2]
[400003263,1767010247417,-2279.61052244,0.0003537,2]
[400003264,1767010247427,-2633.15871089,0.00035373,2]
[400003265,1767010247436,-3389.39,0.000355,2]
[400003266,1767010247446,-2000.0,0.000355,2]
[400003267,1767010247456,-405.39417461,0.00035616,77]
[400003268,1767010247465,-158.08,0.00035616,30]
[400003269,1767010247474,-1008.9,0.00036028,4]
[400003270,1767010247483,-2000.0,0.00036164,120]
[400003271,1767010247493,-3389.39,0.000365,2]
[400003272,1767010247503,-152.11205025,0.00036694,2]
[400003273,1767010247512,-2000.0,0.00036712,120]
[400003274,1767010247521,-655.337,0.00036745,46]
[400003275,1767010247531,-647.7849664,0.00036886,2]
[400003276,1767010247540,-30579.69685284,0.00036888,60]
[400003277,1767010247549,-151.0,0.00036986,31]
[400003278,1767010247561,-151.0,0.00036986,31]
[400003279,1767010247570,-151.0,0.00036986,31]
[400003280,1767010247579,-151.0,0.00036986,31]
[400003281,1767010247589,-151.0,0.00036986,31]
[400003282,1767010247599,-151.0,0.00036986,31]
[400003283,1767010247608,-151.0,0.00036986,31]
[400003284,1767010247617,-151.0,0.00036986,31]
[400003285,1767010247627,-151.0,0.00036986,31]
[400003286,1767010247637,-151.0,0.00036986,31]
[400003287,1767010247646,-151.0,0.00036986,31]
[400003288,1767010247656,-151.0,0.00036986,31]
[400003289,1767010247666,-151.0,0.00036986,31]
[400003290,1767010247675,-151.0,0.00036986,31]
[400003291,1767010247684,-151.0,0.00036986,31]
[400003292,1767010247693,-151.0,0.00036986,31]
[400003293,1767010247702,-151.0,0.00036986,31]
[400003294,1767010247711,-234.521209,0.00036986,31]
[400003295,1767010247720,-151.0,0.00036986,31]
[400003296,1767010247729,-154.15747,0.00036986,31]
[400003297,1767010247740,-161.124246,0.00036986,31]
[400003298,1767010247749,-161.491433,0.00036986,10]
[400003299,1767010247758,-151.0,0.00036986,31]
[400003300,1767010247768,-164.462487,0.00036986,31]
[400003301,1767010247777,-192.660341,0.00036986,31]
[400003302,1767010247786,-151.0,0.00036986,31]
[400003303,1767010247795,-151.0,0.00036986,31]
[400003304,1767010247805,-151.0,0.00036986,31]
[400003305,1767010247814,-151.0,0.00036986,31]
[400003306,1767010247823,-151.0,0.00036986,31]
[400003307,1767010247832,-151.0,0.00036986,31]
[400003308,1767010247841,-167.193054,0.00036986,31]
[400003309,1767010247851,-151.0,0.00036986,31]
[400003310,1767010247860,-151.0,0.00036986,31]
[400003311,1767010247869,-188.179526,0.00036986,31]
[400003312,1767010247879,-151.0,0.00036986,31]
[400003313,1767010247888,-151.0,0.00036986,31]
[400003314,1767010247897,-151.0,0.00036986,31]
[400003315,1767010247906,-151.0,0.00036986,31]
[400003316,1767010247915,-151.0,0.00036986,31]
[400003317,1767010247925,-151.0,0.00036986,31]
[400003318,1767010247934,-151.0,0.00036986,31]
[400003319,1767010247943,-151.0,0.00036986,31]
[400003320,1767010247952,-177.957707,0.00036986,31]
[400003321,1767010247962,-185.189839,0.00036986,31]
[400003322,1767010247972,-151.0,0.00036986,31]
[400003323,1767010247982,-151.000032,0.00036986,31]
[400003324,1767010247991,-151.0,0.00036986,31]
[400003325,1767010248000,-209.548282,0.00036986,31]
[400003326,1767010248009,-151.0,0.00036986,31]
[400003327,1767010248018,-185.312393,0.00036986,31]
[400003328,1767010248027,-235.465203,0.00036986,31]
[400003329,1767010248036,-151.0,0.00036986,31]
[400003330,1767010248046,-151.0,0.00036986,31]
[400003331,1767010248055,-151.0,0.00036986,31]
[400003332,1767010248064,-1443.304395,0.00036986,31]
[400003333,1767010248074,-1443.304395,0.00036986,31]
[400003334,1767010248083,-1443.304395,0.00036986,31]
[400003335,1767010248092,-1443.304395,0.00036986,31]
[400003336,1767010248101,-1443.304395,0.00036986,31]
[400003337,1767010248110,-1443.304395,0.00036986,31]
[400003338,1767010248120,-1443.304395,0.00036986,31]
[400003339,1767010248129,-1443.304395,0.00036986,31]
[400003340,1767010248138,-1443.304395,0.00036986,31]
[400003341,1767010248147,-1443.304395,0.00036986,31]
[400003342,1767010248157,-1443.304395,0.00036986,31]
[400003343,1767010248166,-1443.304395,0.00036986,31]
[400003344,1767010248175,-1443.304395,0.00036986,31]
[400003345,1767010248184,-1443.304395,0.00036986,31]
[400003346,1767010248193,-1443.304395,0.00036986,31]
[400003347,1767010248202,-1443.304395,0.00036986,31]
[400003348,1767010248211,-1443.304395,0.00036986,31]
[400003349,1767010248221,-1443.304395,0.00036986,31]
[400003350,1767010248231,-1443.304395,0.00036986,31]
[400003351,1767010248241,-1443.304386,0.00036986,31]
[400003352,1767010248253,-151.0,0.00036986,31]
[400003353,1767010248262,-151.0,0.00036986,31]
[400003354,1767010248272,-151.0,0.00036986,31]
[400003355,1767010248281,-151.0,0.00036986,31]
[400003356,1767010248290,-151.0,0.00036986,31]
[400003357,1767010248299,-151.0,0.00036986,31]
[400003358,1767010248308,-151.0,0.00036986,31]
[400003359,1767010248320,-151.0,0.00036986,31]
[400003360,1767010248330,-151.0,0.00036986,31]
[400003361,1767010248339,-153.338545,0.00036986,31]
[400003362,1767010248349,-1718.662235,0.00036986,31]
[400003363,1767010248358,-1718.662235,0.00036986,31]
[400003364,1767010248367,-1718.662235,0.00036986,31]
[400003365,1767010248376,-1718.662235,0.00036986,31]
[400003366,1767010248386,-1718.662235,0.00036986,31]
[400003367,1767010248395,-1718.662235,0.00036986,31]
[400003368,1767010248405,-1718.662235,0.00036986,31]
[400003369,1767010248414,-1718.662235,0.00036986,31]
[400003370,1767010248423,-1718.662235,0.00036986,31]
[400003371,1767010248433,-1718.662235,0.00036986,31]
[400003372,1767010248442,-1718.662235,0.00036986,31]
[400003373,1767010248452,-1718.662235,0.00036986,31]
[400003374,1767010248465,-1718.662235,0.00036986,31]
[400003375,1767010248476,-1718.662235,0.00036986,31]
[400003376,1767010248486,-1718.662235,0.00036986,31]
[400003377,1767010248499,-1718.662235,0.00036986,31]
[400003378,1767010248508,-1718.662235,0.00036986,31]
[400003379,1767010248518,-1718.662235,0.00036986,31]
[400003380,1767010248528,-1718.662235,0.00036986,31]
[400003381,1767010248538,-1718.662236,0.00036986,31]
[400003382,1767010248547,-167.409401,0.00036986,31]
[400003383,1767010248556,-552.802466,0.00036986,31]
[400003384,1767010248566,-552.802466,0.00036986,31]
[400003385,1767010248577,-552.802466,0.00036986,31]
[400003386,1767010248587,-552.802466,0.00036986,31]
[400003387,1767010248601,-552.802466,0.00036986,31]
[400003388,1767010248611,-552.802466,0.00036986,31]
[400003389,1767010248621,-552.802466,0.00036986,31]
[400003390,1767010248630,-552.802466,0.00036986,31]
[400003391,1767010248641,-552.802466,0.00036986,31]
[400003392,1767010248651,-552.802466,0.00036986,31]
[400003393,1767010248661,-552.802466,0.00036986,31]
[400003394,1767010248673,-552.802466,0.00036986,31]
[400003395,1767010248683,-552.802466,0.00036986,31]
[400003396,1767010248734,-552.802466,0.00036986,31]
[400003397,1767010248751,-151.0,0.00036986,31]
[400003398,1767010248761,-552.802466,0.00036986,31]
[400003399,1767010248770,-151.0,0.00036986,31]
[400003400,1767010248779,-552.802466,0.00036986,31]
[400003401,1767010248789,-151.0,0.00036986,31]
[400003402,1767010248798,-552.802466,0.00036986,31]
[400003403,1767010248807,-151.0,0.00036986,31]
[400003404,1767010248816,-552.802466,0.00036986,31]
[400003405,1767010248825,-151.0,0.00036986,31]
[400003406,1767010248834,-552.802466,0.00036986,31]
[400003407,1767010248843,-151.0,0.00036986,31]
[400003408,1767010248853,-552.80246,0.00036986,31]
[400003409,1767010248862,-151.0,0.00036986,31]
[400003410,1767010248871,-151.0,0.00036986,31]
[400003411,1767010248882,-151.0,0.00036986,31]
[400003412,1767010248892,-151.0,0.00036986,31]
[400003413,1767010248903,-151.0,0.00036986,31]
[400003414,1767010248914,-186.987581,0.00036986,31]
[400003415,1767010248925,-328.848986,0.00036986,31]
[400003416,1767010248934,-328.848986,0.00036986,31]
[400003417,1767010248943,-328.848986,0.00036986,31]
[400003418,1767010248953,-328.848986,0.00036986,31]
[400003419,1767010248962,-328.848986,0.00036986,31]
[400003420,1767010248971,-328.848986,0.00036986,31]
[400003421,1767010248980,-328.848986,0.00036986,31]
[400003422,1767010248989,-328.848986,0.00036986,31]
[400003423,1767010248999,-328.848986,0.00036986,31]
[400003424,1767010249008,-328.848986,0.00036986,31]
[400003425,1767010249017,-328.848986,0.00036986,31]
[400003426,1767010249026,-328.848986,0.00036986,31]
[400003427,1767010249034,-328.848986,0.00036986,31]
[400003428,1767010249043,-328.848986,0.00036986,31]
[400003429,1767010249052,-328.848986,0.00036986,31]
[400003430,1767010249061,-159.495917,0.00036986,31]
[400003431,1767010249071,-328.848986,0.00036986,31]
[400003432,1767010249080,-328.848986,0.00036986,31]
[400003433,1767010249087,-328.848986,0.00036986,31]
[400003434,1767010249097,-328.848986,0.00036986,31]
[400003435,1767010249106,-328.848981,0.00036986,31]
[400003436,1767010249115,-151.0,0.00036986,31]
[400003437,1767010249124,-151.0,0.00036986,31]
[400003438,1767010249132,-151.0,0.00036986,31]
[400003439,1767010249141,-213.10198802,0.00037088,120]
[400003440,1767010249150,-2000.0,0.0003726,120]
[400003441,1767010249159,-3389.39,0.000374,2]
[400003442,1767010249168,-152.0,0.0003771,3]
[400003443,1767010249177,-647.78496636,0.00037789,2]
[400003444,1767010249186,-2000.0,0.00037808,120]
[400003445,1767010249195,-246.50965399,0.000379,2]
[400003446,1767010249203,-1033.46409579,0.00038067,2]
[400003447,1767010249213,-2279.61052244,0.00038135,2]
[400003448,1767010249222,-2633.15871089,0.00038235,2]
[400003449,1767010249231,-1008.9,0.00038335,5]
[400003450,1767010249241,-712.8,0.00038356,29]
[400003451,1767010249250,-651.9,0.00038356,22]
[400003452,1767010249260,-547.8,0.00038356,25]
[400003453,1767010249268,-570.3,0.00038356,28]
[400003454,1767010249277,-453.0,0.00038356,39]
[400003455,1767010249287,-2000.0,0.00038356,120]
[400003456,1767010249297,-597.3,0.00038356,22]
[400003457,1767010249309,-470.1,0.00038356,46]
[400003458,1767010249318,-743.7,0.00038356,37]
[400003459,1767010249328,-616.8,0.00038356,35]
[400003460,1767010249337,-656.7,0.00038356,23]
[400003461,1767010249347,-630.3,0.00038356,32]
[400003462,1767010249356,-622.2,0.00038356,41]
[400003463,1767010249366,-488.1,0.00038356,34]
[400003464,1767010249375,-554.1,0.00038356,27]
[400003465,1767010249385,-616.2,0.00038356,28]
[400003466,1767010249395,-648.9,0.00038356,25]
[400003467,1767010249404,-701.1,0.00038356,50]
[400003468,1767010249414,-559.5,0.00038356,44]
[400003469,1767010249423,-539.4,0.00038356,15]
[400003470,1767010249433,-522.3,0.00038356,27]
[400003471,1767010249442,-564.6,0.00038356,26]
[400003472,1767010249452,-13751.4,0.00038356,10]
[400003473,1767010249462,-304.3664977,0.0003854,2]
[400003474,1767010249472,-368.11189296,0.0003854,2]
[400003475,1767010249482,-303.58705004,0.0003854,2]
[400003476,1767010249492,-595.39568782,0.0003854,2]
[400003477,1767010249501,-364.18164659,0.0003854,2]
[400003478,1767010249511,-300.0,0.0003854,2]
[400003479,1767010249520,-303.20169357,0.0003854,2]
[400003480,1767010249530,-577.5673783,0.0003854,2]
[400003481,1767010249539,-1321.648778,0.0003854,2]
[400003482,1767010249549,-304.3664977,0.0003854,2]
[400003483,1767010249559,-519.60907308,0.0003854,2]
[400003484,1767010249570,-303.58705004,0.0003854,2]
[400003485,1767010249579,-595.39568782,0.0003854,2]
[400003486,1767010249588,-364.18164659,0.0003854,2]
[400003487,1767010249597,-300.0,0.0003854,2]
[400003488,1767010249607,-303.20169357,0.0003854,2]
[400003489,1767010249616,-577.5673783,0.0003854,2]
[400003490,1767010249626,-1321.648778,0.0003854,2]
[400003491,1767010249635,-304.3664977,0.0003854,2]
[400003492,1767010249645,-303.58705004,0.0003854,2]
[400003493,1767010249654,-595.39568782,0.0003854,2]
[400003494,1767010249663,-364.18164659,0.0003854,2]
[400003495,1767010249672,-393.80125718,0.0003854,2]
[400003496,1767010249681,-303.20169357,0.0003854,2]
[400003497,1767010249690,-577.5673783,0.0003854,2]
[400003498,1767010249699,-1321.648778,0.0003854,2]
[400003499,1767010249709,-304.3664977,0.0003854,2]
[400003500,1767010249717,-303.58705004,0.0003854,2]
[400003501,1767010249727,-595.39568782,0.0003854,2]
[400003502,1767010249736,-364.18164659,0.0003854,2]
[400003503,1767010249748,-303.20169357,0.0003854,2]
[400003504,1767010249757,-577.5673783,0.0003854,2]
[400003505,1767010249767,-1321.648778,0.0003854,2]
[400003506,1767010249776,-170.70503413,0.00038691,2]
[400003507,1767010249785,-647.78496636,0.00038692,2]
[400003508,1767010249795,-3389.39,0.000387,30]
[400003509,1767010249804,-2000.0,0.00038904,120]
[400003510,1767010249812,-1000.0,0.00038904,120]
[400003511,1767010249821,-5128.41,0.00038904,2]
[400003512,1767010249830,-1000.0,0.00039178,120]
[400003513,1767010249839,-2000.0,0.000392,2]
[400003514,1767010249848,-72734.7701585,0.000394,30]
[400003515,1767010249857,-2000.0,0.00039452,120]
[400003516,1767010249866,-1000.0,0.00039452,120]
[400003517,1767010249876,-659.58,0.00039589,2]
[400003518,1767010249885,-647.78496636,0.00039594,2]
[400003519,1767010249893,-422.59,0.00039654,2]
[400003520,1767010249903,-409.06,0.000397,14]
[400003521,1767010249911,-200.0,0.0003972,2]
[400003522,1767010249921,-200.0,0.0003972,2]
[400003523,1767010249930,-200.0,0.0003972,2]
[400003524,1767010249940,-200.0,0.0003972,2]
[400003525,1767010249949,-200.0,0.0003972,2]
[400003526,1767010249958,-200.0,0.0003972,2]
[400003527,1767010249968,-200.0,0.0003972,2]
[400003528,1767010249977,-200.0,0.0003972,2]
[400003529,1767010249986,-200.0,0.0003972,2]
[400003530,1767010249996,-200.0,0.0003972,2]
[400003531,1767010250005,-200.0,0.0003972,2]
[400003532,1767010250015,-200.0,0.0003972,2]
[400003533,1767010250023,-200.0,0.0003972,2]
[400003534,1767010250032,-200.0,0.0003972,2]
[400003535,1767010250041,-200.0,0.0003972,2]
[400003536,1767010250050,-200.0,0.0003972,2]
[400003537,1767010250059,-200.0,0.0003972,2]
[400003538,1767010250068,-200.0,0.0003972,2]
[400003539,1767010250078,-200.0,0.0003972,2]
[400003540,1767010250087,-200.0,0.0003972,2]
[400003541,1767010250096,-200.0,0.0003972,2]
[400003542,1767010250105,-200.0,0.0003972,2]
[400003543,1767010250114,-200.0,0.0003972,2]
[400003544,1767010250123,-200.0,0.0003972,2]
[400003545,1767010250132,-200.0,0.0003972,2]
[400003546,1767010250142,-200.0,0.0003972,2]
[400003547,1767010250151,-200.0,0.0003972,2]
[400003548,1767010250160,-200.0,0.0003972,2]
[400003549,1767010250169,-200.0,0.0003972,2]
[400003550,1767010250179,-200.0,0.0003972,2]
[400003551,1767010250189,-200.0,0.0003972,2]
[400003552,1767010250199,-200.0,0.0003972,2]
[400003553,1767010250209,-200.0,0.0003972,2]
[400003554,1767010250218,-200.0,0.0003972,2]
[400003555,1767010250228,-200.0,0.0003972,2]
[400003556,1767010250238,-200.0,0.0003972,2]
[400003557,1767010250250,-156.0,0.0003972,2]
[400003558,1767010250259,-1000.0,0.00039726,120]
[400003559,1767010250268,-3389.39,0.000398,30]
[400003560,1767010250278,-500.0,0.00039856,14]
[400003561,1767010250287,-500.0,0.00039856,14]
[400003562,1767010250296,-500.0,0.00039856,14]
[400003563,1767010250306,-150.8,0.00039863,2]
[400003564,1767010250316,-1240.09,0.00039863,2]
[400003565,1767010250326,-170.94,0.00039863,2]
[400003566,1767010250335,-150.0,0.00039863,2]
[400003567,1767010250346,-300.77,0.00039863,2]
[400003568,1767010250357,-298.75,0.00039863,2]
[400003569,1767010250367,-1221.52,0.00039863,2]
[400003570,1767010250377,-170.94,0.00039863,2]
[400003571,1767010250387,-150.0,0.00039863,2]
[400003572,1767010250397,-150.0,0.00039863,2]
[400003573,1767010250407,-170.94,0.00039863,2]
[400003574,1767010250417,-1221.52,0.00039863,2]
[400003575,1767010250426,-170.94,0.00039863,2]
[400003576,1767010250435,-150.0,0.00039863,2]
[400003577,1767010250444,-150.0,0.00039863,2]
[400003578,1767010250453,-170.94,0.00039863,2]
[400003579,1767010250462,-170.94,0.00039863,2]
[400003580,1767010250471,-150.0,0.00039863,2]
[400003581,1767010250481,-170.94,0.00039863,2]
[400003582,1767010250490,-150.0,0.00039863,2]
[400003583,1767010250500,-150.0,0.00039863,2]
[400003584,1767010250509,-170.94,0.00039863,2]
[400003585,1767010250519,-166.71,0.00039863,2]
[400003586,1767010250530,-150.0,0.00039863,2]
[400003587,1767010250540,-150.0,0.00039863,2]
[400003588,1767010250549,-300.0,0.00039863,2]
[400003589,1767010250561,-163.0,0.00039877,11]
[400003590,1767010250571,-277507.31664226,0.0003988,30]
[400003591,1767010250581,-300.32686327,0.0004,120]
[400003592,1767010250590,-2000.0,0.0004,120]
[400003593,1767010250599,-1000.0,0.0004,120]
[400003594,1767010250609,-927.3234483,0.0004,120]
[400003595,1767010250619,-541.0,0.0004,120]
[400003596,1767010250628,-160.0,0.0004,33]
[400003597,1767010250638,-266.4,0.0004,33]
[400003598,1767010250647,-5089.05601168,0.0004,11]
[400003599,1767010250656,-253.0,0.0004,30]
[400003600,1767010250666,-2000.0,0.0004,120]
[400003601,1767010250675,-1000.0,0.00040274,120]
[400003602,1767010250685,-464.0,0.00040365,30]
[400003603,1767010250696,-647.78496636,0.00040497,2]
[400003604,1767010250706,-3389.39,0.000405,30]
[400003605,1767010250716,-2000.0,0.00040548,120]
[400003606,1767010250725,-1000.0,0.00040548,120]
[400003607,1767010250735,-1008.9,0.00040643,7]
[400003608,1767010250744,-500.0,0.00040678,14]
[400003609,1767010250753,-500.0,0.00040678,14]
[400003610,1767010250763,-165.42,0.00040685,2]
[400003611,1767010250771,-464.0,0.00040782,30]
[400003612,1767010250781,-250.839,0.000408,120]
[400003613,1767010250790,-250.839,0.000408,120]
[400003614,1767010250799,-250.83,0.000408,120]
[400003615,1767010250808,-500.0,0.00040821,120]
[400003616,1767010250817,-500.0,0.00040821,120]
[400003617,1767010250826,-500.0,0.00040821,120]
[400003618,1767010250836,-500.0,0.00040821,120]
[400003619,1767010250845,-500.0,0.00040821,120]
[400003620,1767010250854,-500.0,0.00040821,120]
[400003621,1767010250863,-205.461604,0.00040821,120]
[400003622,1767010250872,-1000.0,0.00040822,120]
[400003623,1767010250882,-17359.55948454,0.00040833,120]
[400003624,1767010250891,-2279.61052244,0.000409,15]
[400003625,1767010250900,-7313.15432606,0.00040941,2]
[400003626,1767010250910,-302.65,0.00040986,90]
[400003627,1767010250919,-50000.0,0.00041,41]
[400003628,1767010250927,-190130.86759698,0.00041,30]
[400003629,1767010250936,-95065.43379849,0.00041,30]
[400003630,1767010250945,-1500.0,0.00041,120]
[400003631,1767010250956,-409.06,0.00041,14]
[400003632,1767010250966,-244303.40177368,0.00041,5]
[400003633,1767010250976,-313.0,0.00041,120]
[400003634,1767010250986,-5000.0,0.00041,120]
[400003635,1767010250996,-160.0,0.00041,37]
[400003636,1767010251005,-253.0,0.00041,34]
[400003637,1767010251014,-1351.0,0.00041041,7]
[400003638,1767010251023,-151.0,0.00041092,14]
[400003639,1767010251032,-154.17002449,0.00041092,14]
[400003640,1767010251042,-500.0,0.00041095,2]
[400003641,1767010251051,-500.0,0.00041095,2]
[400003642,1767010251060,-500.0,0.00041095,2]
[400003643,1767010251071,-500.0,0.00041095,2]
[400003644,1767010251080,-500.0,0.00041095,2]
[400003645,1767010251090,-500.0,0.00041095,2]
[400003646,1767010251099,-500.0,0.00041095,2]
[400003647,1767010251109,-622.1888904,0.00041095,120]
[400003648,1767010251121,-500.0,0.00041095,120]
[400003649,1767010251130,-500.0,0.00041095,120]
[400003650,1767010251139,-500.0,0.00041095,120]
[400003651,1767010251149,-500.0,0.00041095,120]
[400003652,1767010251158,-500.0,0.00041095,120]
[400003653,1767010251170,-500.0,0.00041095,120]
[400003654,1767010251180,-500.0,0.00041095,120]
[400003655,1767010251190,-500.0,0.00041095,120]
[400003656,1767010251199,-500.0,0.00041095,120]
[400003657,1767010251209,-500.0,0.00041095,120]
[400003658,1767010251218,-500.0,0.00041095,120]
[400003659,1767010251227,-500.0,0.00041095,120]
[400003660,1767010251236,-500.0,0.00041095,120]
[400003661,1767010251246,-500.0,0.00041095,120]
[400003662,1767010251255,-500.0,0.00041095,120]
[400003663,1767010251263,-462.60072199,0.00041095,120]
[400003664,1767010251272,-156.06143702,0.00041095,2]
[400003665,1767010251281,-151.0,0.00041095,120]
[400003666,1767010251290,-7500.0,0.00041095,120]
[400003667,1767010251299,-7500.0,0.00041095,120]
[400003668,1767010251308,-7500.0,0.00041095,120]
[400003669,1767010251317,-7500.0,0.00041095,120]
[400003670,1767010251326,-7500.0,0.00041095,120]
[400003671,1767010251335,-7500.0,0.00041095,120]
[400003672,1767010251344,-7500.0,0.00041095,120]
[400003673,1767010251353,-7500.0,0.00041095,120]
[400003674,1767010251362,-7500.0,0.00041095,120]
[400003675,1767010251372,-7500.0,0.00041095,120]
[400003676,1767010251381,-7500.0,0.00041095,120]
[400003677,1767010251391,-7500.0,0.00041095,120]
[400003678,1767010251400,-7500.0,0.00041095,120]
[400003679,1767010251409,-7500.0,0.00041095,120]
[400003680,1767010251419,-7500.0,0.00041095,120]
[400003681,1767010251428,-7500.0,0.00041095,120]
[400003682,1767010251437,-7500.0,0.00041095,120]
[400003683,1767010251447,-7500.0,0.00041095,120]
[400003684,1767010251456,-7500.0,0.00041095,120]
[400003685,1767010251465,-7500.0,0.00041095,120]
[400003686,1767010251474,-7500.0,0.00041095,120]
[400003687,1767010251483,-7500.0,0.00041095,120]
[400003688,1767010251493,-7500.0,0.00041095,120]
[400003689,1767010251502,-7500.0,0.00041095,120]
[400003690,1767010251512,-500.0,0.00041095,120]
[400003691,1767010251521,-500.0,0.00041095,120]
[400003692,1767010251531,-500.0,0.00041095,120]
[400003693,1767010251540,-500.0,0.00041095,120]
[400003694,1767010251550,-500.0,0.00041095,120]
[400003695,1767010251559,-500.0,0.00041095,120]
[400003696,1767010251569,-500.0,0.00041095,120]
[400003697,1767010251580,-500.0,0.00041095,120]
[400003698,1767010251590,-500.0,0.00041095,120]
[400003699,1767010251602,-500.0,0.00041095,120]
[400003700,1767010251612,-634.97591623,0.00041095,120]
[400003701,1767010251621,-499.965,0.00041095,120]
[400003702,1767010251631,-185.41040503,0.00041095,120]
[400003703,1767010251641,-846.86,0.00041095,120]
[400003704,1767010251650,-846.86,0.00041095,120]
[400003705,1767010251659,-500.0,0.00041095,120]
[400003706,1767010251668,-500.0,0.00041095,120]
[400003707,1767010251678,-846.86,0.00041095,120]